bitfinex-derivatives/quotes_SOLF0:USTF0_20250331
["timestamp","ask_amount","ask_price","bid_price","bid_amount"]
[1743387169935,0.0590522,125.93,125.91,62.0]
[1743387170346,7.9421,125.92,125.91,62.0]
[1743387170542,0.0590522,125.93,125.91,62.0]
[1743387170745,0.0590522,125.93,125.91,77.77711613]
[1743387170941,0.0590522,125.93,125.92,7.83491613]
[1743387171342,0.0590522,125.93,125.92,15.77701613]
[1743387171745,0.0590522,125.93,125.92,20.19240817]
[1743387175143,0.00636345,125.93,125.92,20.19240817]
[1743387176047,0.00636345,125.93,125.92,7.9421]
[1743387180053,0.00636345,125.93,125.91,66.3098]
[1743387180254,0.00636345,125.93,125.91,62.0]
[1743387180953,0.00636345,125.93,125.92,7.9421]
[1743387181550,0.00636345,125.93,125.91,69.9425]
[1743387181751,0.00636345,125.93,125.91,62.0]
[1743387182455,12.25030817,125.92,125.85,30.54]
[1743387182755,7.9437,125.9,125.85,30.54]
[1743387183551,7.9437,125.9,125.86,7.9456]
[1743387183753,0.05456141,125.89,125.86,8.00009731]
[1743387184357,7.99866141,125.89,125.86,0.05449731]
[1743387185356,7.99866141,125.89,125.87,62.0]
[1743387186457,0.05456141,125.89,125.86,0.05449731]
[1743387187547,0.05456141,125.89,125.86,8.00029731]
[1743387189452,0.05456141,125.89,125.87,62.0]
[1743387190758,0.05456141,125.89,125.86,0.05449731]
[1743387191459,7.9453,125.87,125.86,0.05449731]
[1743387193765,15.79846713,125.87,125.86,0.05449731]
[1743387194058,7.9473,125.84,125.78,643.76]
[1743387194261,7.85316713,125.83,125.78,651.61316713]
[1743387194459,7.85316713,125.83,125.79,30.54]
[1743387195251,4.2096,125.86,125.8,0.06003005]
[1743387195252,7.9096818,125.82,125.8,0.06003005]
[1743387195459,0.05651467,125.82,125.79,15.80306713]
[1743387195662,46.34076713,125.84,125.79,7.85316713]
[1743387195859,46.34076713,125.84,125.8,7.85316713]
[1743387196056,15.80076713,125.84,125.8,7.85316713]
[1743387196262,15.80076713,125.84,125.8,15.80236713]
[1743387196761,0.05837319,125.83,125.81,0.06085824]
[1743387197063,0.05837319,125.83,125.81,62.06085824]
[1743387197962,0.05837319,125.83,125.81,70.00985824]
[1743387198463,0.05837319,125.83,125.81,62.06085824]
[1743387198859,8.00617319,125.83,125.81,62.06085824]
[1743387199255,0.05837319,125.83,125.81,62.06085824]
[1743387199462,15.80156713,125.82,125.81,0.06085824]
[1743387200867,7.9496,125.81,125.76,15.80506713]
[1743387201065,15.80276713,125.81,125.76,15.80506713]
[1743387201963,0.05315121,125.8,125.77,7.9516]
[1743387202469,0.05315121,125.8,125.78,62.0]
[1743387202861,38.39316713,125.79,125.73,358.0]
[1743387203062,7.85316713,125.77,125.72,7.85316713]
[1743387203258,0.05215378,125.76,125.72,7.85316713]
[1743387203462,7.85316713,125.75,125.7,38.39316713]
[1743387203767,7.9537,125.74,125.7,46.34866713]
[1743387203962,7.9537,125.74,125.7,7.85316713]
[1743387204158,0.05343762,125.73,125.7,7.85316713]
[1743387204568,0.05343762,125.73,125.71,7.955]
[1743387204868,0.05343762,125.73,125.7,7.85316713]
[1743387205067,0.05343762,125.73,125.71,7.85316713]
[1743387205771,0.05343762,125.73,125.69,47.0463897]
[1743387206069,0.05343762,125.73,125.7,62.0]
[1743387206868,0.05343762,125.73,125.71,7.9551]
[1743387207068,0.05343762,125.73,125.69,47.0463897]
[1743387207471,0.05343762,125.73,125.72,7.9548]
[1743387207872,0.05343762,125.73,125.7,7.9559]
[1743387208068,0.05343762,125.73,125.69,47.0463897]
[1743387208274,0.05343762,125.73,125.66,285.98]
[1743387208275,0.05343762,125.73,125.67,42.8338897]
[1743387209076,7.9553,125.72,125.68,7.957]
[1743387209672,7.9553,125.72,125.69,7.9565]
[1743387210070,7.9553,125.72,125.7,62.0]
[1743387211470,8.00783762,125.73,125.7,62.0]
[1743387212377,0.05343762,125.73,125.7,69.956]
[1743387212875,8.00763762,125.73,125.7,62.0]
[1743387214878,0.05343762,125.73,125.7,69.956]
[1743387215473,0.05343762,125.73,125.7,62.0]
[1743387215670,8.00753762,125.73,125.7,62.0]
[1743387216376,30.59343762,125.73,125.65,16.5166897]
[1743387216579,14.3789897,125.72,125.65,2.131]
[1743387216771,8.00711279,125.7,125.66,7.9582]
[1743387217978,8.00711279,125.7,125.64,358.0]
[1743387217979,30.59051279,125.7,125.64,358.0]
[1743387218273,42.88440249,125.7,125.64,358.0]
[1743387218472,42.88440249,125.7,125.63,30.54]
[1743387218671,7.9579,125.68,125.64,7.9595]
[1743387219072,0.05238339,125.67,125.64,7.9595]
[1743387219474,0.05238339,125.67,125.61,300.5486897]
[1743387219475,0.05238339,125.67,125.61,12.2938897]
[1743387219778,30.61238339,125.67,125.6,30.56]
[1743387219980,30.56,125.67,125.6,30.56]
[1743387220177,0.05990074,125.65,125.6,30.56]
[1743387220679,0.05990074,125.65,125.62,7.961]
[1743387221383,0.05990074,125.65,125.6,30.56]
[1743387221682,0.05990074,125.65,125.62,12.2938897]
[1743387221884,0.05990074,125.65,125.64,7.9598]
[1743387222583,0.05990074,125.65,125.64,69.9598]
[1743387225186,38.4956,125.71,125.67,7.9577]
[1743387225377,7.9556,125.71,125.67,7.9577]
[1743387226280,0.05984841,125.7,125.68,0.05276266]
[1743387226585,8.01594841,125.7,125.68,0.05276266]
[1743387227477,8.01594841,125.7,125.68,8.00996266]
[1743387227478,0.05984841,125.7,125.68,8.00996266]
[1743387227685,0.05984841,125.7,125.68,12.34665236]
[1743387228081,0.05984841,125.7,125.69,7.9567]
[1743387228282,0.05984841,125.7,125.69,69.9567]
[1743387229288,7.9538,125.74,125.71,7.9554]
[1743387230489,8.00937296,125.74,125.71,8.00938457]
[1743387232685,8.00937296,125.74,125.72,62.0]
[1743387232885,7.9541,125.73,125.72,62.0]
[1743387233084,7.9541,125.73,125.71,0.05398457]
[1743387233085,12.2938897,125.73,125.71,0.05398457]
[1743387233293,12.2938897,125.73,125.67,30.54]
[1743387233486,7.9558,125.71,125.67,38.4979]
[1743387233881,12.2938897,125.73,125.67,30.54]
[1743387234081,7.9552,125.72,125.67,30.54]
[1743387234290,0.06040877,125.71,125.68,0.05065995]
[1743387234494,0.06040877,125.71,125.69,7.9563]
[1743387234789,0.06040877,125.71,125.68,0.05065995]
[1743387235681,8.01620877,125.71,125.68,8.00775995]
[1743387236085,8.01620877,125.71,125.69,62.0]
[1743387236789,7.956,125.7,125.69,62.0]
[1743387237189,7.956,125.7,125.68,0.05065995]
[1743387237389,8.01610877,125.71,125.68,0.05065995]
[1743387238589,0.06040877,125.71,125.68,0.05065995]
[1743387238988,0.06040877,125.71,125.69,7.9566]
[1743387239189,8.01590877,125.71,125.68,0.05065995]
[1743387239693,8.01590877,125.71,125.68,8.00765995]
[1743387240093,8.01590877,125.71,125.69,62.0]
[1743387240595,0.06040877,125.71,125.69,62.0]
[1743387241190,0.06040877,125.71,125.69,69.9564]
[1743387241892,0.06040877,125.71,125.69,62.0]
[1743387242293,0.06040877,125.71,125.7,7.956]
[1743387242690,0.06040877,125.71,125.7,30.54]
[1743387242897,0.06040877,125.71,125.68,0.05065995]
[1743387243098,12.2938897,125.7,125.68,0.05065995]
[1743387243597,7.9567,125.69,125.68,0.05065995]
[1743387243795,7.87624653,125.69,125.68,0.05065995]
[1743387245695,12.30798204,125.7,125.68,0.05065995]
[1743387246295,20.26418204,125.7,125.68,0.05065995]
[1743387246895,0.06040877,125.71,125.68,0.05065995]
[1743387247092,8.01610877,125.71,125.68,0.05065995]
[1743387247293,0.06040877,125.71,125.68,0.05065995]
[1743387247698,0.06040877,125.71,125.68,8.00785995]
[1743387247895,0.06040877,125.71,125.68,0.05065995]
[1743387248900,8.01590877,125.71,125.68,0.05065995]
[1743387249408,7.956,125.7,125.68,0.05065995]
[1743387249611,0.06040877,125.71,125.68,0.05065995]
[1743387250108,8.01620877,125.71,125.69,62.0]
[1743387250610,0.06040877,125.71,125.69,62.0]
[1743387251403,0.06040877,125.71,125.7,7.956]
[1743387252103,0.06040877,125.71,125.69,62.0]
[1743387254016,8.01620877,125.71,125.69,62.0]
[1743387255619,0.06040877,125.71,125.69,62.0]
[1743387256021,0.06040877,125.71,125.68,0.05065995]
[1743387258810,12.30798204,125.7,125.68,0.05065995]
[1743387259423,7.9567,125.69,125.68,0.05065995]
[1743387261417,12.30798204,125.7,125.68,0.05065995]
[1743387262014,7.9567,125.69,125.68,0.05065995]
[1743387262425,0.06040877,125.71,125.68,0.05065995]
[1743387263224,7.9564,125.7,125.68,0.05065995]
[1743387264518,8.01610877,125.71,125.68,0.05065995]
[1743387264720,0.06040877,125.71,125.68,0.05065995]
[1743387266719,0.06040877,125.71,125.68,8.00765995]
[1743387267121,0.06040877,125.71,125.68,0.05065995]
[1743387267321,0.06040877,125.71,125.68,7.92275877]
[1743387269227,0.06040877,125.71,125.68,0.05065995]
[1743387269727,7.9564,125.7,125.68,0.05065995]
[1743387270026,0.06040877,125.71,125.68,8.00775995]
[1743387270218,0.06040877,125.71,125.68,0.05065995]
[1743387270725,7.956,125.7,125.68,0.05065995]
[1743387272629,0.06040877,125.71,125.68,7.92275877]
[1743387273021,0.06040877,125.71,125.7,7.956]
[1743387273729,0.06040877,125.71,125.7,46.32809882]
[1743387276125,0.06040877,125.71,125.7,38.456]
[1743387278225,598.0122563,125.84,125.7,38.37209882]
[1743387278425,7.87209882,125.78,125.73,7.87209882]
[1743387278627,7.87209882,125.77,125.73,30.5]
[1743387279427,0.05414737,125.76,125.74,0.05554809]
[1743387279832,8.00674737,125.76,125.74,0.05554809]
[1743387280232,0.05414737,125.76,125.74,0.05554809]
[1743387280432,7.87209882,125.75,125.74,0.05554809]
[1743387280633,15.82499882,125.75,125.74,0.05554809]
[1743387280936,7.9529,125.75,125.74,0.05554809]
[1743387281635,8.00674737,125.76,125.74,0.05554809]
[1743387282134,0.05414737,125.76,125.74,0.05554809]
[1743387283630,0.05414737,125.76,125.74,8.00904809]
[1743387284431,297.25893471,125.84,125.74,38.42764691]
[1743387284633,15.82209882,125.8,125.75,7.87209882]
[1743387285234,15.82209882,125.8,125.76,7.9518]
[1743387285634,0.05456697,125.79,125.77,0.05742294]
[1743387285937,7.92666579,125.79,125.77,0.05742294]
[1743387286432,15.87746579,125.79,125.77,0.05742294]
[1743387287037,7.92666579,125.79,125.77,0.05742294]
[1743387287433,7.92666579,125.79,125.78,62.0]
[1743387287837,15.87716579,125.79,125.78,62.0]
[1743387288039,7.92666579,125.79,125.77,0.05742294]
[1743387288338,7.87209882,125.78,125.77,0.05742294]
[1743387288537,15.82309882,125.78,125.77,0.05742294]
[1743387288937,7.87209882,125.78,125.77,0.05742294]
[1743387289541,15.87736579,125.79,125.77,0.05742294]
[1743387290035,7.92666579,125.79,125.77,0.05742294]
[1743387290539,7.951,125.78,125.77,0.05742294]
[1743387291038,7.92666579,125.79,125.77,62.05742294]
[1743387291643,0.05456697,125.79,125.77,62.05742294]
[1743387292636,0.05456697,125.79,125.77,70.00872294]
[1743387292939,0.05456697,125.79,125.77,100.48872294]
[1743387293440,0.05456697,125.79,125.78,7.951]
[1743387293941,0.00404575,125.79,125.78,15.82309882]
[1743387303948,0.00404575,125.79,125.78,373.82309882]
[1743387304551,15.81899882,125.85,125.82,7.9482]
[1743387304746,7.9469,125.85,125.82,7.9482]
[1743387305047,7.9469,125.85,125.81,38.33209882]
[1743387305346,7.9469,125.85,125.82,7.9483]
[1743387305648,8.00400934,125.85,125.82,8.00116192]
[1743387306945,7.87209882,125.84,125.82,0.05286192]
[1743387307148,7.87209882,125.83,125.82,0.05286192]
[1743387307348,15.81989882,125.83,125.82,0.05286192]
[1743387307548,7.87209882,125.8,125.78,358.0]
[1743387307752,7.87209882,125.79,125.77,62.0]
[1743387308046,15.82289882,125.79,125.77,62.0]
[1743387308544,7.951,125.78,125.77,62.05232098]
[1743387308949,7.951,125.78,125.77,0.05232098]
[1743387310649,0.05819357,125.79,125.77,0.05232098]
[1743387310848,0.05819357,125.79,125.77,7.9244198]
[1743387311152,0.05819357,125.79,125.78,38.31209882]
[1743387311345,0.05819357,125.79,125.78,46.26309882]
[1743387311941,0.05819357,125.79,125.78,108.26309882]
[1743387313752,0.05819357,125.79,125.78,100.391]
[1743387318051,0.05819357,125.79,125.78,92.44]
[1743387319748,0.05819357,125.79,125.78,100.391]
[1743387320654,59.72063884,125.92,125.8,7.9496]
[1743387320847,7.9477,125.84,125.78,92.44]
[1743387321249,7.9477,125.84,125.8,7.9491]
[1743387321453,7.9477,125.84,125.78,30.44]
[1743387321755,0.06124563,125.82,125.81,20.22808252]
[1743387321955,4.1547,125.89,125.81,42.71898252]
[1743387322255,7.945,125.88,125.81,42.71898252]
[1743387322453,7.945,125.88,125.85,7.9465]
[1743387322960,4.1547,125.89,125.87,7.9452]
[1743387323153,0.05681642,125.88,125.87,7.9452]
[1743387324049,0.05681642,125.88,125.85,0.05100133]
[1743387324354,0.05681642,125.88,125.86,62.0]
[1743387325257,0.05681642,125.88,125.85,0.05100133]
[1743387326059,0.05681642,125.88,125.85,7.99730133]
[1743387326663,0.05681642,125.88,125.86,7.9458]
[1743387327661,0.05681642,125.88,125.87,30.42]
[1743387327860,0.05681642,125.88,125.87,42.69898252]
[1743387328365,286.08,125.96,125.87,462.69898252]
[1743387328663,27.26751723,125.97,125.89,12.27898252]
[1743387328865,14.98853471,125.97,125.9,30.42]
[1743387329460,7.9409,125.94,125.9,38.3632]
[1743387329766,12.33323274,125.95,125.92,0.05586861]
[1743387330066,12.27898252,125.95,125.88,30.42]
[1743387330267,12.33159356,125.95,125.92,0.05412872]
[1743387330761,12.27898252,125.93,125.87,62.0]
[1743387331162,7.9424,125.92,125.87,69.9449]
[1743387331362,30.42,125.93,125.87,62.0]
[1743387331969,0.05431632,125.91,125.89,0.05451879]
[1743387334060,7.99741632,125.91,125.89,0.05451879]
[1743387334572,0.05431632,125.91,125.89,0.05451879]
[1743387335268,0.05431632,125.91,125.89,30.45451879]
[1743387336668,0.05431632,125.91,125.9,7.9434]
[1743387337270,0.05431632,125.91,125.89,30.45451879]
[1743387338568,0.05431632,125.91,125.9,7.9434]
[1743387339165,7.94,125.96,125.93,7.9413]
[1743387339467,286.02,126.02,125.92,30.4]
[1743387339468,42.67898252,125.99,125.92,30.4]
[1743387339861,7.9395,125.97,125.93,7.9412]
[1743387340470,0.05233631,125.96,125.94,0.06069529]
[1743387340772,42.67898252,126.03,125.95,42.67898252]
[1743387340967,10.95893471,126.05,125.99,7.9377]
[1743387340968,30.4,126.04,125.99,7.9377]
[1743387341275,57.84931723,126.05,125.98,30.45428596]
[1743387341465,7.99553262,126.03,125.99,7.9373]
[1743387341665,0.05983262,126.03,125.99,7.9373]
[1743387341867,0.05983262,126.03,125.98,30.4]
[1743387342067,0.05983262,126.03,126.0,0.06078622]
[1743387342267,7.99523262,126.03,126.0,0.06078622]
[1743387342966,7.9358,126.02,126.0,0.06078622]
[1743387343165,0.05983262,126.03,126.0,0.06078622]
[1743387343570,0.05983262,126.03,126.01,62.0]
[1743387343872,7.9358,126.02,126.01,62.0]
[1743387344274,7.9365,126.01,126.0,0.06078622]
[1743387349080,7.9361,126.02,126.0,0.06078622]
[1743387349879,7.9365,126.01,126.0,0.06078622]
[1743387350979,7.9361,126.02,126.0,0.06078622]
[1743387351575,0.05983262,126.03,126.0,0.06078622]
[1743387351776,7.9358,126.02,126.0,0.06078622]
[1743387352181,0.05983262,126.03,126.0,0.06078622]
[1743387352381,7.9358,126.02,126.0,0.06078622]
[1743387354077,7.99533262,126.03,126.0,0.06078622]
[1743387354987,7.9359,126.02,126.0,0.06078622]
[1743387355177,0.05983262,126.03,126.0,7.99768622]
[1743387356483,0.05983262,126.03,126.01,7.9364]
[1743387356878,0.05983262,126.03,126.0,12.33976874]
[1743387357086,0.05983262,126.03,126.02,7.9358]
[1743387357381,0.05983262,126.03,126.02,38.2958]
[1743387360782,0.05983262,126.03,126.02,50.57478252]
[1743387361383,7.9305,126.11,126.02,408.57898252]
[1743387361687,7.9305,126.11,126.06,12.27898252]
[1743387361885,7.9305,126.11,126.08,7.9316]
[1743387362183,12.27898252,126.14,126.07,30.36]
[1743387362483,7.9306,126.11,126.09,0.05228845]
[1743387363187,7.99080246,126.12,126.09,0.05228845]
[1743387363985,7.99080246,126.12,126.09,62.05228845]
[1743387365787,0.06090246,126.12,126.09,69.98338845]
[1743387365987,0.06090246,126.12,126.09,62.05228845]
[1743387366385,0.06090246,126.12,126.1,7.9303]
[1743387366585,0.06090246,126.12,126.09,62.05228845]
[1743387366983,7.99050246,126.12,126.09,62.05228845]
[1743387367485,7.99050246,126.12,126.09,0.05228845]
[1743387367689,7.9303,126.11,126.09,0.05228845]
[1743387368680,0.06090246,126.12,126.09,0.05228845]
[1743387369191,0.06090246,126.12,126.1,30.32]
[1743387369790,0.06090246,126.12,126.11,7.9302]
[1743387370491,0.06090246,126.12,126.11,69.9302]
[1743387371191,0.06090246,126.12,126.11,62.0]
[1743387371583,0.06090246,126.12,126.11,69.9302]
[1743387372289,0.06090246,126.12,126.1,30.32]
[1743387372890,0.06090246,126.12,126.11,7.9302]
[1743387373384,0.06090246,126.12,126.1,42.59898252]
[1743387373587,0.06090246,126.12,126.11,7.9302]
[1743387377086,4.1349,126.2,126.15,7.9276]
[1743387377401,4.1349,126.2,126.14,30.32]
[1743387377588,7.9261,126.18,126.14,38.2479]
[1743387378199,0.05271839,126.17,126.15,0.05614225]
[1743387378800,0.05271839,126.17,126.15,7.98374225]
[1743387379100,0.05271839,126.17,126.15,0.05614225]
[1743387379599,7.97921839,126.17,126.15,0.05614225]
[1743387379801,0.05271839,126.17,126.15,0.05614225]
[1743387380205,7.927,126.16,126.15,0.05614225]
[1743387382200,12.33170091,126.17,126.09,655.67898252]
[1743387382402,12.27898252,126.17,126.1,30.3]
[1743387382801,7.9285,126.14,126.1,30.3]
[1743387383397,0.05242985,126.13,126.11,0.05347522]
[1743387384498,0.05242985,126.13,126.12,7.9295]
[1743387384801,0.05242985,126.13,126.11,0.05347522]
[1743387385997,0.05242985,126.13,126.11,7.87335695]
[1743387386399,0.05242985,126.13,126.11,15.80315695]
[1743387387198,0.05242985,126.13,126.12,7.9295]
[1743387387404,0.05242985,126.13,126.12,15.74938173]
[1743387392109,0.05242985,126.13,126.12,7.81988173]
[1743387392403,0.05242985,126.13,126.11,7.87335695]
[1743387393103,0.05242985,126.13,126.11,0.05347522]
[1743387394206,7.9295,126.12,126.11,0.05347522]
[1743387394503,0.05242985,126.13,126.11,0.05347522]
[1743387394704,7.98172985,126.13,126.11,0.05347522]
[1743387394905,0.05242985,126.13,126.12,7.81988173]
[1743387396103,0.05242985,126.13,126.12,15.74938173]
[1743387397702,4.1349,126.2,126.16,7.9267]
[1743387397903,7.9252,126.19,126.15,30.3]
[1743387398107,4.1349,126.2,126.15,30.3]
[1743387398607,7.9256,126.19,126.15,30.3]
[1743387398808,0.05319663,126.19,126.16,0.0521725]
[1743387399308,7.97859663,126.19,126.16,0.0521725]
[1743387399807,7.97859663,126.19,126.16,7.9790725]
[1743387400305,0.05319663,126.19,126.16,7.9790725]
[1743387400811,7.97849663,126.19,126.16,7.9790725]
[1743387402310,0.05319663,126.19,126.16,7.9790725]
[1743387402609,0.05319663,126.19,126.17,12.20841637]
[1743387402811,4.0177,126.24,126.18,30.28]
[1743387403011,4.0177,126.24,126.22,7.923]
[1743387403512,4.0177,126.24,126.21,30.28]
[1743387403810,4.0177,126.24,126.21,38.2036]
[1743387404011,4.07540585,126.24,126.21,38.25929763]
[1743387404310,4.07540585,126.24,126.22,7.923]
[1743387404909,4.07540585,126.24,126.21,38.25929763]
[1743387405610,4.07540585,126.24,126.22,62.0]
[1743387406310,4.07540585,126.24,126.22,69.9231]
[1743387406709,7.923,126.23,126.21,0.05569763]
[1743387406907,16.28382222,126.24,126.21,0.05569763]
[1743387407107,16.28382222,126.24,126.17,30.28]
[1743387407304,7.9233,126.22,126.17,30.28]
[1743387407513,16.22611637,126.24,126.18,7.9253]
[1743387408010,7.9237,126.22,126.18,7.9253]
[1743387408213,7.97762776,126.22,126.2,0.05869526]
[1743387409418,0.05392776,126.22,126.2,0.05869526]
[1743387410008,7.9239,126.21,126.2,0.05869526]
[1743387410217,42.52234413,126.22,126.15,396.1875]
[1743387410421,42.46841637,126.22,126.15,396.1875]
[1743387410622,42.46841637,126.22,126.15,365.9275]
[1743387411316,0.051084,126.2,126.17,0.05459064]
[1743387411518,12.25950037,126.2,126.17,0.05459064]
[1743387411717,30.26,126.19,126.17,0.05459064]
[1743387412524,12.20841637,126.18,126.1,42.46841637]
[1743387412711,12.20841637,126.18,126.1,30.26]
[1743387412916,7.9268,126.17,126.1,42.46841637]
[1743387413119,7.9268,126.17,126.11,62.0]
[1743387413519,0.06033417,126.15,126.13,0.05061733]
[1743387414221,0.06033417,126.15,126.14,7.9283]
[1743387414420,0.06033417,126.15,126.13,0.05061733]
[1743387415115,0.06033417,126.15,126.13,7.97911733]
[1743387416310,0.06033417,126.15,126.14,7.9283]
[1743387416717,0.06033417,126.15,126.13,0.05061733]
[1743387417013,0.06033417,126.15,126.13,7.97931733]
[1743387417425,0.06033417,126.15,126.14,7.9283]
[1743387418725,0.06033417,126.15,126.14,20.13671637]
[1743387418918,7.9249,126.2,126.17,7.9261]
[1743387420220,7.98494816,126.2,126.17,7.97796338]
[1743387420422,7.98494816,126.2,126.17,0.05186338]
[1743387420626,0.06004816,126.2,126.17,0.05186338]
[1743387421120,7.98494816,126.2,126.17,0.05186338]
[1743387421323,7.98494816,126.2,126.17,7.97826338]
[1743387422226,7.98494816,126.2,126.17,0.05186338]
[1743387422726,7.9253,126.19,126.17,0.05186338]
[1743387423024,12.26846453,126.2,126.17,0.05186338]
[1743387423230,42.52846453,126.2,126.17,0.05186338]
[1743387423927,7.9257,126.19,126.17,0.05186338]
[1743387424127,42.52846453,126.2,126.17,0.05186338]
[1743387424528,12.20841637,126.18,126.12,358.0]
[1743387424729,12.20841637,126.18,126.1,30.26]
[1743387424928,7.9286,126.14,126.1,38.1903]
[1743387425120,7.9286,126.14,126.1,30.26]
[1743387425733,0.053525,126.13,126.11,0.05247267]
[1743387425932,0.053525,126.13,126.11,7.98227267]
[1743387426938,0.053525,126.13,126.11,0.05247267]
[1743387427530,7.982825,126.13,126.11,0.05247267]
[1743387427725,0.053525,126.13,126.11,0.05247267]
[1743387428831,0.053525,126.13,126.11,7.98227267]
[1743387431832,0.053525,126.13,126.11,0.05247267]
[1743387432040,7.9295,126.12,126.11,0.05247267]
[1743387432537,15.80205427,126.13,126.11,0.05247267]
[1743387433438,7.9295,126.12,126.11,0.05247267]
[1743387434443,0.053525,126.13,126.11,7.87180194]
[1743387434637,0.053525,126.13,126.12,7.81932927]
[1743387435540,0.053525,126.13,126.11,38.13180194]
[1743387435740,0.053525,126.13,126.11,30.31247267]
[1743387436042,0.053525,126.13,126.11,0.05247267]
[1743387437341,0.053525,126.13,126.12,7.9295]
[1743387437635,0.00166162,126.13,126.12,38.1895]
[1743387437838,7.9255,126.19,126.16,7.9269]
[1743387438241,4.0239,126.21,126.15,30.26]
[1743387438440,7.9242,126.21,126.16,12.21646814]
[1743387438638,30.26,126.23,126.16,12.21646814]
[1743387438841,30.26,126.23,126.15,30.26]
[1743387439041,0.05269069,126.21,126.18,0.059737]
[1743387441050,7.9245,126.2,126.18,0.059737]
[1743387441745,0.05269069,126.21,126.18,0.059737]
[1743387443244,7.9251,126.19,126.18,0.059737]
[1743387443947,7.9248,126.2,126.18,0.059737]
[1743387444846,0.05269069,126.21,126.18,0.059737]
[1743387445544,7.9251,126.19,126.18,0.059737]
[1743387446842,42.45646814,126.2,126.12,2.1051]
[1743387447043,12.21646814,126.16,126.1,30.24]
[1743387447550,7.9287,126.14,126.1,30.24]
[1743387447945,7.9287,126.14,126.08,14.37696814]
[1743387448241,0.06033243,126.13,126.11,0.05385628]
[1743387449439,7.98963243,126.13,126.11,0.05385628]
[1743387449642,0.06033243,126.13,126.11,0.05385628]
[1743387450748,7.9295,126.12,126.11,0.05385628]
[1743387452044,0.06033243,126.13,126.11,0.05385628]
[1743387452640,0.06033243,126.13,126.12,7.9295]
[1743387453041,0.06033243,126.13,126.12,38.1695]
[1743387453245,0.06033243,126.13,126.12,30.24]
[1743387453846,0.06033243,126.13,126.12,38.1695]
[1743387454151,0.06033243,126.13,126.12,30.24]
[1743387456150,0.06033243,126.13,126.11,7.98405628]
[1743387457251,0.06033243,126.13,126.11,0.05385628]
[1743387457456,7.9295,126.12,126.11,0.05385628]
[1743387459057,0.06033243,126.13,126.11,0.05385628]
[1743387459251,0.06033243,126.13,126.11,30.29385628]
[1743387460455,0.06033243,126.13,126.12,7.9295]
[1743387460755,0.06033243,126.13,126.11,92.29385628]
[1743387460955,7.98963243,126.13,126.11,30.29385628]
[1743387462955,7.9295,126.12,126.11,0.05385628]
[1743387463156,12.21646814,126.12,126.07,358.0]
[1743387463352,7.9311,126.1,126.05,42.45646814]
[1743387463566,7.9311,126.1,126.06,7.9329]
[1743387464060,7.9311,126.1,126.06,69.9329]
[1743387464356,0.05583741,126.09,126.07,0.05000607]
[1743387465262,7.98733741,126.09,126.07,0.05000607]
[1743387465659,0.05583741,126.09,126.07,0.05000607]
[1743387465861,0.05583741,126.09,126.02,30.24]
[1743387466164,0.05583741,126.09,126.02,38.1757]
[1743387466360,7.9337,126.06,126.02,7.9357]
[1743387466762,2.128,126.09,126.02,7.9357]
[1743387466960,7.9346,126.04,126.03,0.05851511]
[1743387469666,7.98424848,126.05,126.03,0.05851511]
[1743387469966,0.05004848,126.05,126.03,0.05851511]
[1743387470167,7.9346,126.04,126.03,0.05851511]
[1743387476062,0.05004848,126.05,126.03,0.05851511]
[1743387476874,42.47646814,126.12,126.04,30.26]
[1743387477066,12.21646814,126.1,126.04,30.26]
[1743387477271,42.47646814,126.1,126.04,30.26]
[1743387477972,0.06034613,126.08,126.06,0.05109588]
[1743387478572,0.06034613,126.08,126.06,7.98399588]
[1743387478766,0.06034613,126.08,126.06,0.05109588]
[1743387479174,7.99244613,126.08,126.06,0.05109588]
[1743387479771,7.9327,126.07,126.06,0.05109588]
[1743387479971,0.06034613,126.08,126.06,0.05109588]
[1743387482479,0.06034613,126.08,126.06,7.98429588]
[1743387484470,0.06034613,126.08,126.06,0.05109588]
[1743387485473,7.9327,126.07,126.06,0.05109588]
[1743387485773,20.14916814,126.07,126.06,0.05109588]
[1743387486982,0.06034613,126.08,126.06,0.05109588]
[1743387487181,0.06034613,126.08,126.06,7.98409588]
[1743387487584,0.06034613,126.08,126.06,69.98409588]
[1743387487783,0.06034613,126.08,126.06,62.05109588]
[1743387488286,0.06034613,126.08,126.06,0.05109588]
[1743387489284,20.14916814,126.07,126.06,0.05109588]
[1743387489877,0.06034613,126.08,126.06,0.05109588]
[1743387490282,0.06034613,126.08,126.06,7.98409588]